{"text_format":"3","workbook":"xlsx","n_sheets":1,"sheets":["Gastos de instalación"],"not_rendered":{"defined_names":1},"read":"whole","date_system":"1900"}

{"sheet":"Gastos de instalación","index":0,"n_rows":120,"n_cols":4,"rows_kept":120,"merged":[[1,1,1,3],[10,1,10,3],[17,1,17,3],[25,1,25,3],[34,1,34,3],[42,1,42,3],[50,1,50,3],[55,1,55,3],[57,1,57,3],[59,1,59,3],[60,1,60,3],[69,1,69,3],[76,1,76,3],[81,1,81,3],[82,1,82,3],[90,1,90,3],[102,1,102,3],[110,1,110,3],[115,1,115,3]]}
["GASTOS DE INSTALACIÓN",null,null,"NOMBRE DE LA COMPAÑÍA, LTD"]
[null,"NOTA ANTES DE USAR ESTA HOJA DE CÁLCULO\nCasi todas las personas que crean una empresa subestiman los costos y enfrentan el riesgo de administrarla con reservas de capital inadecuadas. La clave para evitar este error es adoptar un enfoque riguroso en la fase de investigación y planeación. Nuestra plantilla de gastos de instalación te guiará a través del proceso.\n\nEMPIEZA POR CALCULAR LOS GASTOS\n¿Cuánto te costará poner en funcionamiento tu empresa? Aquí la clave de la precisión es la atención a los detalles. Para cada categoría de gastos, elabora una lista de todo lo que debes comprar. Se incluyen los activos tangibles (por ejemplo, equipo e inventario), así como los servicios (por ejemplo, remodelación, seguros). A continuación, determinar dónde puedes comprar estos productos o servicios. Busca más de un proveedor, es decir, compara precios. No solo veas el precio. Las condiciones de pago, la entrega, la confiabilidad y el servicio también son importantes. "]
[]
[null,"GASTOS DE INSTALACIÓN"]
[null,"EDIFICIOS/INMUEBLES"," ","CANTIDAD"]
[null,"Compra",null,{"v":0,"d":"$0.00"}]
[null,"Construcción",null,{"v":0,"d":"$0.00"}]
[null,"Remodelación",null,{"v":0,"d":"$0.00"}]
[null,"Otro",null,{"v":0,"d":"$0.00"}]
[null,"Total",null,{"$f":"SUBTOTAL(109,Inmueble[CANTIDAD])","v":{"v":0,"d":"$0.00"}}]
[]
[null,"MEJORAS DE ARRENDAMIENTO"," ","CANTIDAD"]
[null,"Elemento 1",null,{"v":0,"d":"$0.00"}]
[null,"Elemento 2",null,{"v":0,"d":"$0.00"}]
[null,"Elemento 3",null,{"v":0,"d":"$0.00"}]
[null,"Elemento 4",null,{"v":0,"d":"$0.00"}]
[null,"Total",null,{"$f":"SUBTOTAL(109,Mejoras[CANTIDAD])","v":{"v":0,"d":"$0.00"}}]
[]
[null,"LISTA DE BIENES DE EQUIPO"," ","CANTIDAD"]
[null,"Mobiliario",null,{"v":0,"d":"$0.00"}]
[null,"Equipo",null,{"v":0,"d":"$0.00"}]
[null,"Accesorios",null,{"v":0,"d":"$0.00"}]
[null,"Maquinaria",null,{"v":0,"d":"$0.00"}]
[null,"Otro",null,{"v":0,"d":"$0.00"}]
[null,"Total",null,{"$f":"SUBTOTAL(109,Capital[CANTIDAD])","v":{"v":0,"d":"$0.00"}}]
[]
[null,"GASTOS DE UBICACIÓN Y ADMINISTRACIÓN"," ","CANTIDAD"]
[null,"Alquiler",null,{"v":0,"d":"$0.00"}]
[null,"Depósitos para pago de servicios",null,{"v":0,"d":"$0.00"}]
[null,"Honorarios jurídicos y de contabilidad",null,{"v":0,"d":"$0.00"}]
[null,"Seguros de prepago",null,{"v":0,"d":"$0.00"}]
[null,"Salarios de preapertura ",null,{"v":0,"d":"$0.00"}]
[null,"Otro",null,{"v":0,"d":"$0.00"}]
[null,"Total",null,{"$f":"SUBTOTAL(109,GastosDeAdministración[CANTIDAD])","v":{"v":0,"d":"$0.00"}}]
[]
[null,"INVENTARIO DE APERTURA"," ","CANTIDAD"]
[null,"Categoría 1",null,{"v":0,"d":"$0.00"}]
[null,"Categoría 2",null,{"v":0,"d":"$0.00"}]
[null,"Categoría 3",null,{"v":0,"d":"$0.00"}]
[null,"Categoría 4",null,{"v":0,"d":"$0.00"}]
[null,"Categoría 5",null,{"v":0,"d":"$0.00"}]
[null,"Total",null,{"$f":"SUBTOTAL(109,InventarioDeApertura[CANTIDAD])","v":{"v":0,"d":"$0.00"}}]
[]
[null,"GASTOS PUBLICITARIOS Y PROMOCIONALES"," ","CANTIDAD"]
[null,"Publicidad",null,{"v":0,"d":"$0.00"}]
[null,"Señalización",null,{"v":0,"d":"$0.00"}]
[null,"Impresión",null,{"v":0,"d":"$0.00"}]
[null,"Viajes y entretenimiento",null,{"v":0,"d":"$0.00"}]
[null,"Otras categorías adicionales",null,{"v":0,"d":"$0.00"}]
[null,"Total",null,{"$f":"SUBTOTAL(109,GastosPublicitarios[CANTIDAD])","v":{"v":0,"d":"$0.00"}}]
[]
[null,"OTROS GASTOS"," ","CANTIDAD"]
[null,"Otros gastos 1",null,{"v":0,"d":"$0.00"}]
[null,"Otros gastos 2",null,{"v":0,"d":"$0.00"}]
[null,"Total",null,{"$f":"SUBTOTAL(109,OtrosGastos[CANTIDAD])","v":{"v":0,"d":"$0.00"}}]
[]
[null,"Reserva para contingencias",null,{"v":0,"d":"$0.00"}]
[]
[null,"Capital circulante ",null,{"v":0,"d":"$0.00"}]
[]
[null,"AGREGA UNA RESERVA PARA CONTINGENCIAS\nAsegúrate de que explicas en la descripción la forma cómo decidiste la cantidad que estás poniendo en reserva. \n\nDETERMINA EL FLUJO DE CAJA\nNo puedes abrir una cuenta bancaria nueva. Necesitas un colchón de efectivo para afrontar los gastos mientras la empresa se pone en marcha. Finalmente debes hacer una proyección de flujo de caja de 12 meses. Aquí es donde harás el cálculo de tus necesidades de capital circulante. Por ahora, deja esta línea en blanco o pon ahí tu mejor cálculo aproximado. Después de completar el flujo de caja, puedes volver y especificar la cantidad que hayas investigado detenidamente.\n\nESCRIBE TUS FUENTES DE CAPITAL\nAhora que ya calculaste cuánto capital necesitarás para empezar, debes centrar tu atención hacia la parte superior de esta hoja de cálculo. Escribe las cantidades que pondrás tú mismo, cuánto inyectarán tus socios o inversionistas, y cuánto se suministrará por medio de préstamos."]
[]
[null,"FUENTES DE CAPITAL"]
[null,"INVERSIÓN DE LOS PROPIETARIOS (NOMBRE Y % DE PARTICIPACIÓN)"," ","CANTIDAD"]
[null,"El nombre y el porcentaje de participación",null,{"v":0,"d":"$0.00"}]
[null,"Otro inversionista",null,{"v":0,"d":"$0.00"}]
[null,"Otro inversionista",null,{"v":0,"d":"$0.00"}]
[null,"Otro inversionista",null,{"v":0,"d":"$0.00"}]
[null,"Total",null,{"$f":"SUBTOTAL(109,InversionesPropietarios[CANTIDAD])","v":{"v":0,"d":"$0.00"}}]
[]
[null,"PRÉSTAMOS BANCARIOS"," ","CANTIDAD"]
[null,"Banco 1",null,{"v":0,"d":"$0.00"}]
[null,"Banco 2",null,{"v":0,"d":"$0.00"}]
[null,"Banco 3",null,{"v":0,"d":"$0.00"}]
[null,"Banco 4",null,{"v":0,"d":"$0.00"}]
[null,"Total",null,{"$f":"SUBTOTAL(109,PréstamosBancarios[CANTIDAD])","v":{"v":0,"d":"$0.00"}}]
[]
[null,"OTROS PRÉSTAMOS"," ","CANTIDAD"]
[null,"Fuente 1",null,{"v":0,"d":"$0.00"}]
[null,"Fuente 2",null,{"v":0,"d":"$0.00"}]
[null,"Total",null,{"$f":"SUBTOTAL(109,OtrosPréstamos[CANTIDAD])","v":{"v":0,"d":"$0.00"}}]
[]
[null,"PROPORCIONA PRUEBAS DE GARANTÍA\nSi vas a usar este plan para respaldar una solicitud de préstamo bancario, usa la sección en la parte inferior para mostrar los activos que se ofrecen como garantía para asegurar el préstamo y calcular el valor de esos elementos. Prepárese para ofrecer algunas pruebas de sus estimaciones de valores de garantía."]
[]
[null,"RESUMEN DE PRESENTACIÓN"]
[null,"FUENTE DE CAPITAL"," ","TOTALES"]
[null,"Propietarios y otras inversiones",null,{"$f":"InversionesPropietarios[[#Totals],[CANTIDAD]]","v":{"v":0,"d":"$0.00"}}]
[null,"Préstamos bancarios",null,{"$f":"PréstamosBancarios[[#Totals],[CANTIDAD]]","v":{"v":0,"d":"$0.00"}}]
[null,"Otros préstamos",null,{"$f":"OtrosPréstamos[[#Totals],[CANTIDAD]]","v":{"v":0,"d":"$0.00"}}]
[null,"Total",null,{"$f":"SUBTOTAL(109,FuentesDeCapital[TOTALES])","v":{"v":0,"d":"$0.00"}}]
[]
[null,"GASTOS DE INSTALACIÓN"," ","TOTALES"]
[null,"Edificios/inmuebles",null,{"$f":"Inmueble[[#Totals],[CANTIDAD]]","v":{"v":0,"d":"$0.00"}}]
[null,"Mejoras de arrendamiento",null,{"$f":"Mejoras[[#Totals],[CANTIDAD]]","v":{"v":0,"d":"$0.00"}}]
[null,"Bienes de equipo",null,{"$f":"Capital[[#Totals],[CANTIDAD]]","v":{"v":0,"d":"$0.00"}}]
[null,"Gastos de administración y ubicación",null,{"$f":"GastosDeAdministración[[#Totals],[CANTIDAD]]","v":{"v":0,"d":"$0.00"}}]
[null,"Inventario de apertura",null,{"$f":"InventarioDeApertura[[#Totals],[CANTIDAD]]","v":{"v":0,"d":"$0.00"}}]
[null,"Gastos publicitarios o promocionales",null,{"$f":"GastosPublicitarios[[#Totals],[CANTIDAD]]","v":{"v":0,"d":"$0.00"}}]
[null,"Otros gastos",null,{"$f":"OtrosGastos[[#Totals],[CANTIDAD]]","v":{"v":0,"d":"$0.00"}}]
[null,"Fondo para contingencias",null,{"$f":"SUM('Gastos de instalación'!$C$57)","v":{"v":0,"d":"$0.00"}}]
[null,"Capital circulante",null,{"$f":"SUM('Gastos de instalación'!$C$59)","v":{"v":0,"d":"$0.00"}}]
[null,"Total",null,{"$f":"SUBTOTAL(109,GastosDeInstalación[TOTALES])","v":{"v":0,"d":"$0.00"}}]
[]
[null,"PROPUESTA DE SEGURIDAD Y GARANTÍA PARA EL PRÉSTAMO"]
[null,"GARANTÍA PARA PRÉSTAMOS","DESCRIPCIÓN","VALOR"]
[null,"Inmuebles",null,{"v":0,"d":"$0.00"}]
[null,"Otras garantías",null,{"v":0,"d":"$0.00"}]
[null,"Otras garantías",null,{"v":0,"d":"$0.00"}]
[null,"Otras garantías",null,{"v":0,"d":"$0.00"}]
[null,"Total",null,{"$f":"SUBTOTAL(109,Garantías[VALOR])","v":{"v":0,"d":"$0.00"}}]
[]
[null,"PROPIETARIOS"," ","  "]
[null,"Tu nombre aquí"]
[null,"Otro propietario"]
[null,"Otro propietario"]
[]
[null,"FIADORES DEL PRÉSTAMO (QUE NO SEAN LOS PROPIETARIOS)"," ","  "]
[null,"Fiador 1"]
[null,"Fiador 2"]
[null,"Fiador 3"]